Cogmind - Beta 16.1 @@@ ROGUE MODE // 2026.03.05 @ 19:01:26 Player: StaticNoob Result: Destroyed by D-53 Grenadier with Mini Grenade Launcher Performance ------------- Evolutions (3) 1500 Regions Visited (11) 2200 Robots Destroyed (105) 525 Value Destroyed (4604) 4604 Prototype IDs (15) 300 Alien Tech Used (0) 0 Bonus (2226) 2226 TOTAL SCORE: 11355 Bonus ------- High Alert Combat Kills 580 Follower Combat Kills 171 Entered Garrisons 600 Used RIF Installer 1000 Friendly Fire -125 Cogmind --------- Core Integrity 0/700 Matter 261/300 Energy 98/100 System Corruption 10% Temperature Cool (0) Movement Core (50) Location -7/Recycling Parts ------- > --- POWER (1) -------- (None) > --- PROPULSION (2) --- (None) > --- UTILITY (6) ------ Advanced Terrain Scan Processor > --- WEAPON (4) ------- (None) > --- INVENTORY (5) ---- 1B-0RG's Assimilator Peak State ------------ > --- POWER ------------ Ion Engine Light Nuclear Core > --- PROPULSION ------- Light Treads Light Treads Wheel > --- UTILITY ---------- Improved Heat Sink Improved Heat Sink Large Storage Unit Hardened Medium Armor Plating Makeshift Light Armor Plating Rainbow Chip > --- WEAPON ----------- Precision Beam Rifle Heavy Particle Cannon Battle Rifle Barrage Gun > --- INVENTORY -------- Medium Battery Large Matter Pod Relay Coupler [Swarmer] Relay Coupler [Grunt] Relay Coupler [Grunt] Relay Coupler [Behemoth] EM Pulse Cannon Improved Assault Rifle Improved Assault Rifle 1B-0RG's Assimilator [Rating: 55] Favorites ----------- Power Light Nuclear Core Engine Improved Ion Engine Power Core Light Nuclear Core Propulsion Light Treads Treads Light Treads Leg Carbon-fiber Leg Wheel Armored Huge Wheel Flight Unit Xenon Bombardment Thruster Utility Improved Heat Sink Device Improved Heat Sink Storage Large Storage Unit Processor Rainbow Chip Hackware Relay Coupler [Swarmer] Protection Makeshift Light Armor Plating Weapon Ion Cannon Energy Gun Particle Gun Energy Cannon Ion Cannon Ballistic Gun Barrage Gun Ballistic Cannon Battle Cannon Special Weapon Remote Datajack Build | -11 -10 -10 -8 -8 -8 -8 -7 -7 -7 -7 -7 ------- Run | Yrd Mat Sub Mat Gar Mat Gar Fac Gar Fac Sto Rec Slots Evolved 6 | . . . 4 . . . 2 . . . . Power . | . . . . . . . . . . . . Propulsion . | . . . . . . . . . . . . Utility 4 | . . . 3 . . . 1 . . . . Weapon 2 | . . . 1 . . . 1 . . . . Parts Attached 98 | 6 6 7 12 26 3 19 1 13 2 1 2 Power 12 | 1 1 . 1 3 1 1 . 3 . . 1 Engine 3 | 1 . . . 2 . . . . . . . Core 9 | . 1 . 1 1 1 1 . 3 . . 1 Reactor . | . . . . . . . . . . . . Propulsion 21 | 2 . 3 2 6 1 3 . 3 1 . . Treads 11 | 2 . 2 2 4 1 . . . . . . Leg 4 | . . . . 1 . 1 . 2 . . . Wheel 5 | . . 1 . 1 . 2 . 1 . . . Hover . | . . . . . . . . . . . . Flight 1 | . . . . . . . . . 1 . . Utility 34 | 1 3 1 7 8 1 8 1 2 1 . 1 Device 14 | . 1 . 2 6 . 3 . 1 1 . . Storage 6 | 1 1 . 2 1 . 1 . . . . . Processor 4 | . 1 . 1 1 . . . . . . 1 Hackware 5 | . . . . . . 3 1 1 . . . Protection 5 | . . 1 2 . 1 1 . . . . . Artifact . | . . . . . . . . . . . . Weapon 31 | 2 2 3 2 9 . 7 . 5 . 1 . Energy Gun 14 | 2 . . 1 2 . 3 . 5 . 1 . Energy Cannon 7 | . 1 . 1 5 . . . . . . . Ballistic Gun 6 | . 1 2 . 2 . 1 . . . . . Ballistic Cannon 1 | . . 1 . . . . . . . . . Launcher . | . . . . . . . . . . . . Special Weapon 3 | . . . . . . 3 . . . . . Impact Weapon . | . . . . . . . . . . . . Slashing Weapon . | . . . . . . . . . . . . Piercing Weapon . | . . . . . . . . . . . . Special Melee Weapon . | . . . . . . . . . . . . Unidentified Prototypes 1 | . . . . 1 . . . . . . . Parts Lost 47 | . . 2 . 11 . 7 . 22 2 3 . Power 6 | . . . . 2 . . . 3 . 1 . Propulsion 11 | . . . . 4 . 2 . 4 1 . . Utility 11 | . . . . 2 . 1 . 6 1 1 . Weapon 19 | . . 2 . 3 . 4 . 9 . 1 . Highest Loss Streak 11 | . . 1 . 5 . 2 . 11 2 3 . To Critical Strikes . | . . . . . . . . . . . . Average Backups 9 | . 4 9 8 10 11 12 12 9 1 1 1 Power 1 | . 2 2 1 . . . 1 1 . . . Propulsion . | . . 1 1 . . . 1 . . . . Utility 4 | . . 1 2 5 7 8 7 5 . . . Weapon 2 | . 2 3 2 2 1 . 1 . . . . Tool/Special . | . . . . . . . . . . . . Unused Backups 22 | . . 5 2 3 1 2 . 8 . . 1 Power 2 | . . 1 . . . . . 1 . . . Propulsion 1 | . . . 1 . . . . . . . . Utility 14 | . . 3 . 2 . 2 . 7 . . . Weapon 4 | . . 1 1 1 1 . . . . . . Tool/Special 1 | . . . . . . . . . . . 1 Average Slot Usage (%) 91 | . 97 98 96 97 100 90 91 71 26 15 4 Engine 2 | . 5 . . 4 7 . . . . . . Core 7 | . 8 14 9 3 1 9 7 5 7 5 . Treads 14 | . 28 24 18 15 18 2 . . . . . Wheel 3 | . . 3 . 1 . 8 7 5 . . . Device 15 | . 9 6 3 27 28 15 15 11 13 5 . Storage 10 | . 14 14 17 8 9 9 7 5 . . . Hackware 3 | . . . . . . 12 15 11 . . . Protection 6 | . . 7 20 5 7 6 7 5 . . . Energy Gun 3 | . 4 . . 3 . 6 15 17 . 2 . Energy Cannon 11 | . 12 8 8 13 27 12 . . . . . Ballistic Gun 8 | . 10 10 18 10 . 5 7 5 . . . Ballistic Cannon 1 | . . 8 . . . . . . . . . Peak Build Rating 55 | 6 9 24 34 55 39 47 47 47 18 16 10 Average Rating 29 | 4 8 14 32 39 36 39 46 35 17 12 9 On Entrance 22 | . 6 9 24 34 35 39 43 47 12 12 6 Avg Prop Armor Cover (%) 9 | . . 8 . 11 . 7 . . 7 . . Naked Turns 40 | . . . . . . . . . . 10 30 Heaviest Build 64 | 12 21 25 52 57 56 64 60 60 8 10 . Greatest Support 42 | 40 40 40 40 40 42 42 28 28 6 3 3 Greatest Overweight (x) 14 | 2 . 1 1 10 1 14 2 14 2 3 . Average Overweight (x) 1 | . . . . 2 1 2 2 1 1 1 . Largest Inventory Capacity 20 | 8 10 10 15 15 15 20 20 20 5 5 5 Average Capacity 13 | 7 8 10 13 14 15 17 20 16 5 5 5 Most Carried 20 | . 9 10 15 15 15 20 19 18 5 5 5 Average Carried 12 | . 4 9 12 14 14 17 17 13 5 5 5 Final Capacity 20 | 8 10 10 15 15 15 20 20 5 5 5 5 Final Carried 20 | . 9 10 15 15 15 20 17 5 5 5 5 Class Distribution -------------------- 27% | Scavenger-Tank 26% | Mutant 16% | Scavenger-Gunner 6% | Bothacker-Tank 6% | Derelict-Mutant 6% | Tank 4% | Bothacker-Gunner Dominant Class ---------------- Mutant | -10/Materials Mutant | -10/Subcaves Tank | -8/Materials Scavenger-Gunner | -8/Garrison Scavenger-Tank | -8/Materials Scavenger-Tank | -8/Garrison Scavenger-Tank | -7/Factory Scavenger-Tank | -7/Garrison Mutant | -7/Factory Mutant | -7/Storage Mutant | -7/Recycling Resources | -11 -10 -10 -8 -8 -8 -8 -7 -7 -7 -7 -7 ----------- Run | Yrd Mat Sub Mat Gar Mat Gar Fac Gar Fac Sto Rec Matter Collected 2689 | 100 266 373 323 1003 45 381 . 170 . 28 . Remotely . | . . . . . . . . . . . . Salvage Created 4943 | . 299 271 563 1136 673 1557 . 402 . 42 . Parts 240 | 2 17 17 34 74 33 51 . 11 . 1 . Haulers Intercepted 4 | . 1 . 1 . 2 . . . . . . Recyclers Shooed . | . . . . . . . . . . . . Parts Field Recycled . | . . . . . . . . . . . . Retrieved Matter . | . . . . . . . . . . . . Parts Self-Destructed 13 | . . 13 . . . . . . . . . Prevented . | . . . . . . . . . . . . Parts Restored . | . . . . . . . . . . . . Kills | -11 -10 -10 -8 -8 -8 -8 -7 -7 -7 -7 -7 ------- Run | Yrd Mat Sub Mat Gar Mat Gar Fac Gar Fac Sto Rec Combat Hostiles Destroyed 109 | . 7 8 10 32 13 21 . 17 . 1 . Guns 58 | . 1 4 7 24 . 4 . 17 . 1 . Cannons 47 | . 5 4 3 8 13 14 . . . . . AOE 2 | . . . . . . 2 . . . . . Classes Destroyed 13 | 1 4 2 1 2 1 1 . 1 . . . Builder 1 | . . . . . 1 . . . . . . Tunneler 1 | 1 . . . . . . . . . . . Hauler 4 | . 1 . 1 . 2 . . . . . . Watcher 1 | . 1 . . . . . . . . . . Swarmer 32 | . 3 1 . 14 4 9 . 1 . . . Grunt 37 | . 4 . 6 9 5 8 . 4 . 1 . Brawler 2 | . . . 1 1 . . . . . . . Duelist 1 | . . . . 1 . . . . . . . Sentry 13 | . . 1 3 4 4 1 . . . . . Hunter 1 | . . . . . . 1 . . . . . Programmer 6 | . . . . 3 . 3 . . . . . Subdweller 6 | . . 6 . . . . . . . . . Assembled 13 | . . . . . . . . 13 . . . Best Kill Streak 8 | 1 3 3 3 6 5 4 . 8 . 1 . Combat Bots Only 8 | . 3 3 3 6 5 4 . 8 . 1 . Max Kills in Single Turn 2 | 1 1 1 1 2 2 2 . 2 . 1 . Gunslinging 1 | . . . . . . . . 1 . . . Exploded 1 | . . . . . . 1 . . . . . Melee . | . . . . . . . . . . . . Uniques/NPCs Destroyed . | . . . . . . . . . . . . Combat | -11 -10 -10 -8 -8 -8 -8 -7 -7 -7 -7 -7 -------- Run | Yrd Mat Sub Mat Gar Mat Gar Fac Gar Fac Sto Rec Hostile Shots Fired 743 | . 29 52 29 207 62 99 . 148 54 49 14 Missed 223 | . 9 11 5 62 14 31 . 39 22 22 8 Hits 520 | . 20 41 24 145 48 68 . 109 32 27 6 Melee 13 | . . . . 1 . . . 12 . . . Projectile 507 | . 20 41 24 144 48 68 . 97 32 27 6 AOE 3 | . . . . . . . . . . . 3 Critical Strikes 11 | . . 1 . 8 1 1 . . . . . Damage Taken 6945 | . 226 866 362 1680 683 810 . 1793 176 238 111 Core 1289 | . 21 171 18 154 132 85 . 418 64 115 111 Absorbed by Shields 246 | . . . . 137 . 46 . . 63 . . Redirected to Shielding 114 | . . . 18 . . 6 . 90 . . . Core Remaining (%) 50 | 100 . 23 . . . 29 . . . . . Volleys Fired 397 | . 25 49 21 85 33 117 . 60 . 7 . Largest 4 | . 2 2 3 4 3 3 . 4 . 1 . Hottest 215 | . 80 93 128 189 180 180 . 215 . 80 . Shots Fired 924 | . 50 82 51 230 87 269 . 148 . 7 . Gun 541 | . 25 33 42 172 . 114 . 148 . 7 . Cannon 374 | . 25 49 9 58 87 146 . . . . . Launcher . | . . . . . . . . . . . . Special 9 | . . . . . . 9 . . . . . Kinetic 352 | . 25 68 42 134 . 44 . 39 . . . Thermal 531 | . 25 14 9 84 87 214 . 91 . 7 . Explosive . | . . . . . . . . . . . . Electromagnetic 32 | . . . . 12 . 2 . 18 . . . Robot Hit Streak 30 | . 8 11 6 12 14 30 . 8 . 8 . Robot Miss Streak 4 | . 3 2 3 4 3 2 . 4 . 1 . Penetration Max . | . . . . . . . . . . . . Secondary Targets 9 | . . . 1 2 . 1 . 5 . . . Max Gunslinging Chain 1 | . . . 1 1 . 1 . 1 . . . Shots Hit Robots 579 | . 27 51 29 128 44 217 . 76 . 7 . Core Hits 235 | . 10 15 18 51 21 72 . 42 . 6 . Critical Kills 4 | . 1 . 1 1 . 1 . . . . . Critical Parts Destroyed 1 | . . . 1 . . . . . . . . Critical Strikes 15 | . 1 . 2 3 . 6 . 3 . . . Burn 10 | . . . . 2 . 5 . 3 . . . Meltdown 1 | . 1 . . . . . . . . . . Destroy 4 | . . . 2 1 . 1 . . . . . Melee Attacks . | . . . . . . . . . . . . Impact . | . . . . . . . . . . . . Slashing . | . . . . . . . . . . . . Piercing . | . . . . . . . . . . . . Sneak Attacks . | . . . . . . . . . . . . Combat Hostiles . | . . . . . . . . . . . . Follow-up Attacks . | . . . . . . . . . . . . Damage Inflicted 10506 | 7 434 905 586 2390 1072 3844 . 1090 3 175 . Guns 4972 | . 152 360 436 1724 . 1035 . 1090 . 175 . Cannons 5521 | . 279 545 150 666 1072 2809 . . . . . Explosions . | . . . . . . . . . . . . Melee . | . . . . . . . . . . . . Ramming 13 | 7 3 . . . . . . . 3 . . Kinetic 2938 | . 152 728 436 1266 . 177 . 179 . . . Thermal 7371 | . 279 177 150 1084 1072 3647 . 787 . 175 . Explosive . | . . . . . . . . . . . . Electromagnetic 184 | . . . . 40 . 20 . 124 . . . Impact . | . . . . . . . . . . . . Slashing . | . . . . . . . . . . . . Piercing . | . . . . . . . . . . . . Highest Corruption 10 | . . . . 2 2 3 . 10 10 10 10 Average Corruption 3 | . . . . 1 2 2 . 6 10 10 10 Corruption Purged . | . . . . . . . . . . . . Corruption Blocked . | . . . . . . . . . . . . Effects 66 | . . . . 18 6 25 . 6 3 3 5 Message Errors 10 | . . . . 2 1 5 . . . 1 1 Matter Fused 22 | . . . . 8 2 6 . 1 1 1 3 Heat Flow Errors 7 | . . . . 2 1 3 . 1 . . . Energy Discharges 8 | . . . . 3 . 3 . 1 1 . . Parts Rejected 2 | . . . . . . 1 . 1 . . . Parts Fused 1 | . . . . . . 1 . . . . . Data Loss (minor) 8 | . . . . . 2 4 . 1 1 . . Data Loss (major) 4 | . . . . 1 . 2 . 1 . . . Misfires 2 | . . . . 2 . . . . . . . Alerts 1 | . . . . . . . . . . 1 . Misdirections 1 | . . . . . . . . . . . 1 Overload Shots . | . . . . . . . . . . . . Overflow Damage 86 | . 19 . . 5 . 62 . . . . . Projectiles 86 | . 19 . . 5 . 62 . . . . . Explosions . | . . . . . . . . . . . . Melee . | . . . . . . . . . . . . Knockbacks 2 | . . 2 . . . . . . . . . Impact . | . . . . . . . . . . . . Kinetic 2 | . . 2 . . . . . . . . . Secondary . | . . . . . . . . . . . . Self-Inflicted Damage 1 | . . . . . . . . . 1 . . Shots . | . . . . . . . . . . . . Rammed 5 | 2 2 . . . . . . . 1 . . Targets Rammed 6 | 3 2 . . . . . . . 1 . . Kicked . | . . . . . . . . . . . . Crushed 1 | 1 . . . . . . . . . . . Highest Temperature 462 | . 60 20 414 462 107 410 . 314 . 96 . Average Temperature 106 | . 20 6 149 163 11 108 . 100 . 39 . Received Heat Transfer 1920 | . 87 165 189 649 180 243 . 278 42 81 6 Effects 9 | . . . 3 2 . 2 . 2 . . . Shutdowns 2 | . . . . 1 . 1 . . . . . Energy Bleed 2 | . . . 1 . . 1 . . . . . Interference 4 | . . . 2 . . . . 2 . . . Short Circuit 1 | . . . . 1 . . . . . . . Siege Activations . | . . . . . . . . . . . . Martial Activations . | . . . . . . . . . . . . Shielding Activations . | . . . . . . . . . . . . Robots Disrupted . | . . . . . . . . . . . . Combat Hostiles . | . . . . . . . . . . . . Robots Corrupted . | . . . . . . . . . . . . Combat Hostiles . | . . . . . . . . . . . . Parts Fried . | . . . . . . . . . . . . Impact Corruptions . | . . . . . . . . . . . . Robots Melted 3 | . 1 . . . . 2 . . . . . Combat Hostiles 2 | . 1 . . . . 1 . . . . . Parts Melted 14 | . 1 1 . 3 1 8 . . . . . Heat Transferred 13500 | . 592 370 222 2146 1702 5959 . 2109 . 400 . Parts Sabotaged . | . . . . . . . . . . . . Parts Stolen . | . . . . . . . . . . . . Parts Stripped . | . . . . . . . . . . . . Power Chain Reactions . | . . . . . . . . . . . . Alert | -11 -10 -10 -8 -8 -8 -8 -7 -7 -7 -7 -7 ------- Run | Yrd Mat Sub Mat Gar Mat Gar Fac Gar Fac Sto Rec Maximum Alert Level 4 | . . . . 3 3 4 2 3 1 . . Low Security (%) 34 | 100 100 . 100 27 . . . . . 100 100 Level 1 4 | . . . . 8 . . . . 100 . . Level 2 28 | . . . . 20 97 19 100 84 . . . Level 3 30 | . . . . 43 2 65 . 15 . . . Level 4 3 | . . . . . . 14 . . . . . Level 5 . | . . . . . . . . . . . . High Security . | . . . . . . . . . . . . Max Security . | . . . . . . . . . . . . Peak Influence 1194 | 5 96 . 101 1096 704 1194 626 745 264 96 17 Initial 626 | . . . 7 31 534 426 626 422 264 96 17 Average 492 | . 25 . 42 546 611 857 614 615 248 77 3 Influence Increases 3470 | 5 237 40 312 1175 392 898 8 383 . 20 . Destroy 0b10 Robot/C 1920 | . 140 40 200 640 260 440 . 180 . 20 . Destroy 0b10 Robot/NC 75 | 5 10 . 5 . 15 40 . . . . . Destroy Leader 240 | . 34 . 62 20 84 40 . . . . . Allied During Kill 61 | . . . . . . 13 . 48 . . . Successful Hack 34 | . 5 . 11 . 10 . 8 . . . . Disable Machine 75 | . . . 30 15 15 15 . . . . . Anti-Garrison Action 900 | . . . . 450 . 300 . 150 . . . Destroy Structure 45 | . 3 . 4 20 8 5 . 5 . . . Partial Spotted 30 | . 30 . . . . . . . . . . Lose Combat Pursuer 90 | . 15 . . 30 . 45 . . . . . Influence Decreases 3470 | 5 193 68 280 127 832 360 598 482 291 188 46 Entered New Map 1978 | . . 22 9 17 562 230 568 182 241 118 29 Time Decay 902 | 5 193 46 271 . 270 . 30 . 30 40 17 Lost Part 450 | . . . . 110 . 70 . 220 20 30 . Lost Ally 140 | . . . . . . 60 . 80 . . . Squads Dispatched 8 | . . . 3 . 2 . 2 . . 1 . Investigation 4 | . . . 2 . . . 1 . . 1 . Extermination . | . . . . . . . . . . . . Reinforcement 2 | . . . . . 1 . 1 . . . . Assault 1 | . . . . . 1 . . . . . . Garrison 1 | . . . 1 . . . . . . . . Intercept . | . . . . . . . . . . . . Searches Triggered . | . . . . . . . . . . . . Construction Impeded . | . . . . . . . . . . . . Haulers Reinforced . | . . . . . . . . . . . . Active Scanning Responses . | . . . . . . . . . . . . Cargo Convoy Interrupts . | . . . . . . . . . . . . Stealth | -11 -10 -10 -8 -8 -8 -8 -7 -7 -7 -7 -7 --------- Run | Yrd Mat Sub Mat Gar Mat Gar Fac Gar Fac Sto Rec Distress Signals 7 | . . . . . 3 . . . . . 4 Communications Jammed . | . . . . . . . . . . . . Distress Signals . | . . . . . . . . . . . . Times Spotted 170 | . 14 8 11 35 22 28 . 40 2 3 7 Peak Tracking Total 8 | . 4 3 3 6 5 5 . 8 2 2 5 Tactical Retreats 6 | . 1 . . 1 . 1 . 2 . . 1 Traps | -11 -10 -10 -8 -8 -8 -8 -7 -7 -7 -7 -7 ------- Run | Yrd Mat Sub Mat Gar Mat Gar Fac Gar Fac Sto Rec Traps Triggered 18 | . 1 1 . 8 . 7 . . . 1 . Indirectly . | . . . . . . . . . . . . Trap Hack Attempts . | . . . . . . . . . . . . Triggered . | . . . . . . . . . . . . Disarmed . | . . . . . . . . . . . . Reprogrammed . | . . . . . . . . . . . . Reused . | . . . . . . . . . . . . Traps Extracted . | . . . . . . . . . . . . Installed . | . . . . . . . . . . . . Triggered . | . . . . . . . . . . . . Machines | -11 -10 -10 -8 -8 -8 -8 -7 -7 -7 -7 -7 ---------- Run | Yrd Mat Sub Mat Gar Mat Gar Fac Gar Fac Sto Rec Machines Disabled 12 | . . 1 2 4 1 3 . 1 . . . Max in Single Turn 1 | . . 1 1 1 1 1 . 1 . . . Garrison Relay 6 | . . . . 3 . 2 . 1 . . . Machines Repaired . | . . . . . . . . . . . . Machines Dismantled 1 | . . . . . . 1 . . . . . Machines Sabotaged . | . . . . . . . . . . . . Overloaded Fab Kills . | . . . . . . . . . . . . Hacking | -11 -10 -10 -8 -8 -8 -8 -7 -7 -7 -7 -7 --------- Run | Yrd Mat Sub Mat Gar Mat Gar Fac Gar Fac Sto Rec Machines Accessed 26 | . 4 1 5 3 4 4 1 . . . 4 Terminals 16 | . 3 . 2 3 2 4 . . . . 2 Fabricators . | . . . . . . . . . . . . Repair Stations 1 | . . . . . 1 . . . . . . Recycling Units 4 | . 1 . 1 . . . . . . . 2 Scanalyzers 1 | . . . 1 . . . . . . . . Garrison Access 3 | . . . 1 . 1 . 1 . . . . Total Hacks 72 | . 10 9 17 7 13 9 2 . . . 5 Successful 32 | . 4 9 8 1 6 . 2 . . . 2 Failed 40 | . 6 . 9 6 7 9 . . . . 3 Catastrophic 10 | . 1 . . 3 2 2 . . . . 2 Database Lockouts . | . . . . . . . . . . . . Manual 25 | . 7 . 6 . 9 . 1 . . 1 1 Terminals 43 | . 9 . 6 7 9 9 . . . . 3 Fabricators . | . . . . . . . . . . . . Repair Stations 1 | . . . . . 1 . . . . . . Recycling Units 7 | . 1 . 4 . . . . . . . 2 Scanalyzers 3 | . . . 3 . . . . . . . . Garrison Access 9 | . . . 4 . 3 . 2 . . . . Terminal Hacks 14 | . 1 9 . 1 3 . . . . . . Record 8 | . . 8 . . . . . . . . . Branch Access Points 1 | . . . . . 1 . . . . . . Locate Traps 2 | . 1 . . . 1 . . . . . . Recall Reinforcements 1 | . . . . . 1 . . . . . . Garrison Registry 1 | . . . . 1 . . . . . . . Proto ID Catalog 1 | . . 1 . . . . . . . . . Fabricator Hacks . | . . . . . . . . . . . . Repair Station Hacks . | . . . . . . . . . . . . Recycling Unit Hacks 3 | . . . 1 . . . . . . . 2 Retrieve Components 3 | . . . 1 . . . . . . . 2 Scanalyzer 2 | . . . 2 . . . . . . . . Insert Component 1 | . . . 1 . . . . . . . . Retrieve Study 1 | . . . 1 . . . . . . . . Garrison Access Hacks 3 | . . . 1 . 1 . 1 . . . . Unlock Access 3 | . . . 1 . 1 . 1 . . . . Unauthorized Hacks 10 | . 3 . 4 . 2 . 1 . . . . Terminals 8 | . 3 . 3 . 2 . . . . . . Track 1 | . . . . . 1 . . . . . . Botnet 2 | . 1 . 1 . . . . . . . . Disrupt 1 | . . . . . 1 . . . . . . Skim 4 | . 2 . 2 . . . . . . . . Fabricators . | . . . . . . . . . . . . Repair Stations . | . . . . . . . . . . . . Recycling Units 1 | . . . 1 . . . . . . . . Recyclers 1 | . . . 1 . . . . . . . . Scanalyzers . | . . . . . . . . . . . . Garrison Access 1 | . . . . . . . 1 . . . . Reprogram 1 | . . . . . . . 1 . . . . Data Cores Recovered . | . . . . . . . . . . . . Used . | . . . . . . . . . . . . Hacking Detections 22 | . 4 . 5 3 4 4 . . . . 2 Full Trace Events 4 | . . . 2 . . 2 . . . . . Feedback Events 1 | . . . . . . 1 . . . . . Corruption 1 | . . . . . . 1 . . . . . Feedback Blocked . | . . . . . . . . . . . . Robot Schematics Acquired . | . . . . . . . . . . . . Robots Built . | . . . . . . . . . . . . Authchips . | . . . . . . . . . . . . Time . | . . . . . . . . . . . . Total Robot Build Rating . | . . . . . . . . . . . . Part Schematics Acquired . | . . . . . . . . . . . . Parts Built . | . . . . . . . . . . . . Authchips . | . . . . . . . . . . . . Time . | . . . . . . . . . . . . Total Part Build Rating . | . . . . . . . . . . . . Part Studies Acquired 1 | . . . 1 . . . . . . . . Parts Repaired . | . . . . . . . . . . . . Time . | . . . . . . . . . . . . Parts Recycled . | . . . . . . . . . . . . Recycled Matter . | . . . . . . . . . . . . Retrieved Matter . | . . . . . . . . . . . . Retrieved Components 7 | . . . 3 . . . . . . . 4 Parts Scanalyzed . | . . . . . . . . . . . . Part Schematics Acquired . | . . . . . . . . . . . . Parts Damaged . | . . . . . . . . . . . . Bothacking | -11 -10 -10 -8 -8 -8 -8 -7 -7 -7 -7 -7 ------------ Run | Yrd Mat Sub Mat Gar Mat Gar Fac Gar Fac Sto Rec Used RIF Installer 2 | . . . . 1 . 1 . . . . . Zone Cloak 1 | . . . . . . 1 . . . . . Robots Hacked 7 | . . . . . . 7 . . . . . Non-combat . | . . . . . . . . . . . . Combat 7 | . . . . . . 7 . . . . . Robot Hacks Applied 7 | . . . . . . 7 . . . . . amplify_resonance 2 | . . . . . . 2 . . . . . wipe_record 1 | . . . . . . 1 . . . . . overwrite_iff 3 | . . . . . . 3 . . . . . formatsys_high 1 | . . . . . . 1 . . . . . Relay Couplers Released 32 | . . . . 14 . 11 . 7 . . . Machine Destruction 26 | . . . . 14 . 8 . 4 . . . Programmers 6 | . . . . . . 3 . 3 . . . Attached 5 | . . . . . . 3 1 1 . . . Fabnet Peak Effective % . | . . . . . . . . . . . . Robots Rewired 4 | . . . . . . 2 . 2 . . . Allies Hacked . | . . . . . . . . . . . . Hacks Repelled . | . . . . . . . . . . . . Allies | -11 -10 -10 -8 -8 -8 -8 -7 -7 -7 -7 -7 -------- Run | Yrd Mat Sub Mat Gar Mat Gar Fac Gar Fac Sto Rec Total Allies 11 | . . . . . . 6 3 2 . . . Largest Group 4 | . . . . . . 2 4 4 . . . Highest-Rated Group 87 | . . . . . . 64 87 87 . . . Highest-Rated Ally 39 | . . . . . . 39 39 39 . . . Total Orders . | . . . . . . . . . . . . Ally Attacks 120 | . . . . . . 12 . 108 . . . Total Damage 1239 | . . . . . . 194 . 1045 . . . Kills 23 | . . . . . . 1 . 22 . . . Allies Corrupted . | . . . . . . . . . . . . Allies Melted . | . . . . . . . . . . . . Intel | -11 -10 -10 -8 -8 -8 -8 -7 -7 -7 -7 -7 ------- Run | Yrd Mat Sub Mat Gar Mat Gar Fac Gar Fac Sto Rec Active Infowar (turns) . | . . . . . . . . . . . . Robot Analysis Total . | . . . . . . . . . . . . Derelict Logs Recovered . | . . . . . . . . . . . . Drone Launches . | . . . . . . . . . . . . Drone Recoveries . | . . . . . . . . . . . . Exploration | -11 -10 -10 -8 -8 -8 -8 -7 -7 -7 -7 -7 ------------- Run | Yrd Mat Sub Mat Gar Mat Gar Fac Gar Fac Sto Rec Turns Passed 7946 | 63 705 1503 659 2118 590 1411 78 526 78 88 127 Spaces Moved 3768 | 34 369 776 251 824 203 629 57 266 53 71 235 Core 450 | 8 . . . 8 . 10 . 67 51 71 235 Treads 2017 | 26 369 582 251 570 203 16 . . . . . Legs 16 | . . . . . . . . 16 . . . Wheels 1283 | . . 194 . 246 . 603 57 183 . . . Hover . | . . . . . . . . . . . . Flight 2 | . . . . . . . . . 2 . . Fastest Speed 40 | 50 160 120 160 115 232 115 130 50 40 50 50 Average Speed 162 | 147 160 155 217 205 234 141 130 120 140 100 50 Slowest Speed 750 | 160 160 260 250 550 240 750 130 750 150 200 50 Overloaded Moves . | . . . . . . . . . . . . Propulsion Burnouts . | . . . . . . . . . . . . Robots Hopped . | . . . . . . . . . . . . Potential Cave-ins . | . . . . . . . . . . . . Cave-ins Triggered . | . . . . . . . . . . . . Exploration Rate (%) 31 | 4 56 56 21 69 40 54 1 29 2 14 31 Regions Visited 11 Branch Regions 3 Pre-discovered Areas . | . . . . . . . . . . . . Known Exits Taken 3 | . . . 1 . 1 . 1 . . . . Unknown Exits Taken 5 | 1 1 1 . . . . . . 1 1 . Scrap Searched 3 | . . 3 . . . . . . . . . Spaces Dug 4 | . . 1 . . 3 . . . . . . Terrain Destroyed 12 | . . 2 2 . 8 . . . . . . Melee . | . . . . . . . . . . . . Projectile 12 | . . 2 2 . 8 . . . . . . AOE . | . . . . . . . . . . . . Terrain Rammed . | . . . . . . . . . . . . Walls Destroyed . | . . . . . . . . . . . . Machines Disabled . | . . . . . . . . . . . . Actions | -11 -10 -10 -8 -8 -8 -8 -7 -7 -7 -7 -7 --------- Run | Yrd Mat Sub Mat Gar Mat Gar Fac Gar Fac Sto Rec Total 4845 | 42 432 1003 325 1077 252 915 60 362 55 78 244 Wait 302 | . 21 146 23 47 7 50 1 1 . . 6 Move 3760 | 33 368 775 251 823 203 628 56 265 53 70 235 Hop . | . . . . . . . . . . . . Pick Up 56 | . 6 10 8 18 2 9 . 3 . . . Fast Attach 59 | 6 4 3 7 14 1 7 . 12 2 1 2 Attach 24 | . . 3 1 7 1 7 2 3 . . . Detach 9 | . 2 1 . 2 . 4 . . . . . Swap 34 | . 2 1 4 11 1 12 1 2 . . . Drop 62 | . 2 15 10 17 4 11 . 2 . . 1 Fire 397 | . 25 49 21 85 33 117 . 60 . 7 . Melee . | . . . . . . . . . . . . Ram . | . . . . . . . . . . . . Kick . | . . . . . . . . . . . . Crush 5 | 3 2 . . . . . . . . . . Escape Stasis 98 | . . . . 53 . 45 . . . . . Rewire 31 | . . . . . . 17 . 14 . . . Trap . | . . . . . . . . . . . . Miscellaneous 8 | . . . . . . 8 . . . . . Route ------- -11/Scrapyard -10/Materials (discovered 3 exits: [*Mat] / [*Min] / *Sub) -10/Subcaves -8/Materials -8/Garrison (discovered 3 exits: *Mat x3) -8/Materials (discovered 2 exits: *Fac / Gar) -8/Garrison (discovered 2 exits: *Fac x2) -7/Factory -7/Garrison -7/Factory -7/Storage -7/Recycling History --------- Turn | Location | Event 14 | -11/Scrapyard | Discovered new exit (range 15) 64 | -11/Scrapyard | Entered Materials 303 | -10/Materials | Build established: Mutant 455 | -10/Materials | Discovered new exit (range 11) 594 | -10/Materials | Discovered new exit (range 14) 759 | -10/Materials | Discovered new exit (range 8) 769 | -10/Materials | Entered Subcaves 1464 | -10/Subcaves | Shifting Twisted Machinery released Mak. Light Armor Plating 1639 | -10/Subcaves | Disturbed a concealed Subdweller 1772 | -10/Subcaves | Discovered new exit (range 14) 1979 | -10/Subcaves | Visited 4L-MR0's lab 2016 | -10/Subcaves | Core integrity fell below 50% 2067 | -10/Subcaves | Build established: Derelict-Mutant 2077 | -10/Subcaves | Found Prototype Special Melee Weapon 2081 | -10/Subcaves | Found Rainbow Chip 2272 | -10/Subcaves | Entered Materials 2272 | -8/Materials | Evolved 4 slots: Utility x3, Weapon x1 2687 | -8/Materials | Garrison activated, responded to threat 2931 | -8/Materials | Identified exit to Garrison 2931 | -8/Materials | Entered Garrison 3037 | -8/Garrison | Triggered checkpoint 3235 | -8/Garrison | Installed Relay Interface Framework 3293 | -8/Garrison | Build established: Scavenger-Tank 3373 | -8/Garrison | Triggered checkpoint 3440 | -8/Garrison | Attached Rainbow Chip, gained temporary slots: Power, Propulsion, Utility, Weapon 3443 | -8/Garrison | Garrison Relay disabled 3567 | -8/Garrison | Triggered checkpoint 3791 | -8/Garrison | Triggered checkpoint 3917 | -8/Garrison | Garrison Relay disabled 3972 | -8/Garrison | Triggered checkpoint 4031 | -8/Garrison | Lost 5 parts (1p3n1w) 4080 | -8/Garrison | Discovered new exit (range 14) 4115 | -8/Garrison | Build established: Scavenger-Gunner 4485 | -8/Garrison | Triggered checkpoint 4537 | -8/Garrison | Triggered checkpoint 4565 | -8/Garrison | Garrison Relay disabled 4608 | -8/Garrison | Discovered new exit (range 8) 4727 | -8/Garrison | Triggered checkpoint 4797 | -8/Garrison | Discovered new exit (range 43) 4797 | -8/Garrison | Discovered new exit (range 69) 4797 | -8/Garrison | Discovered new exit (range 12) 5049 | -8/Garrison | Entered Materials 5425 | -8/Materials | Build established: Scavenger-Tank 5449 | -8/Materials | First assault squad dispatched 5504 | -8/Materials | Core integrity fell below 50% 5591 | -8/Materials | Discovered new exit (range 16) 5639 | -8/Materials | Identified exit to Garrison 5639 | -8/Materials | Entered Garrison 6043 | -8/Garrison | Triggered checkpoint 6059 | -8/Garrison | Garrison Relay disabled 6175 | -8/Garrison | Triggered checkpoint 6198 | -8/Garrison | Triggered checkpoint 6201 | -8/Garrison | Triggered checkpoint 6215 | -8/Garrison | Build established: Bothacker-Gunner 6247 | -8/Garrison | Triggered checkpoint 6457 | -8/Garrison | Triggered checkpoint 6529 | -8/Garrison | Discovered new exit (range 11) 6724 | -8/Garrison | Discovered new exit (range 12) 6767 | -8/Garrison | Triggered checkpoint 6869 | -8/Garrison | Build established: Scavenger-Tank 6931 | -8/Garrison | Expanded RIF knowledge: Zone Cloak 6983 | -8/Garrison | Garrison Relay disabled 7050 | -8/Garrison | Entered Factory 7050 | -7/Factory | Accompanied by 1 ally 7050 | -7/Factory | Evolved 2 slots: Utility x1, Weapon x1 7097 | -7/Factory | Identified exit to Garrison 7128 | -7/Factory | Entered Garrison 7128 | -7/Garrison | Accompanied by 4 allies 7154 | -7/Garrison | Assembled breached garrison interior 7381 | -7/Garrison | Garrison Relay disabled 7382 | -7/Garrison | Lost 4 parts (1n1u2w) 7495 | -7/Garrison | Lost 4 allies 7527 | -7/Garrison | Destroyed 8 combat bots 7549 | -7/Garrison | Discovered new exit (range 5) 7560 | -7/Garrison | Lost 11 parts (1p1n4u5w) 7563 | -7/Garrison | System corruption reached 10% 7573 | -7/Garrison | Core integrity fell below 50% 7607 | -7/Garrison | Lost 5 parts (1p2n1u1w) 7654 | -7/Garrison | Entered Factory 7714 | -7/Factory | Discovered new exit (range 12) 7732 | -7/Factory | Entered Storage 7808 | -7/Storage | Core integrity fell below 20% 7818 | -7/Storage | Used back door to open Recycling access 7818 | -7/Storage | Discovered new exit (range 5) 7820 | -7/Storage | Entered Recycling 7841 | -7/Recycling | Lost 3 parts (1p1u1w) 7872 | -7/Recycling | Build established: Mutant 7947 | -7/Recycling | Destroyed by D-53 Grenadier with Mini Grenade Launcher Last Messages --------------- >>Retrieve(Components) Retrieving 1 components... Mic. Nuclear Core 07837_ Acquired Mic. Nuclear Core. 07838_ Dropped Mic. Nuclear Core. 07841_ R-06 Scavenger collects Mic. Nuclear Core. 07851_ Connecting with Recycling Unit... >>Retrieve(Components) Retrieving 3 components... Adv. Terrain Scan Processor Force Booster Mic. Nuclear Core 07851_ Acquired Adv. Terrain Scan Processor. 07869_ System corrupted: Matter fused (-7). 07901_ System corrupted: Matter fused (-5). 07906_ I-36 Angel sends out distress signal. 07938_ G